[Event "Live Chess"]
[Site "Chess.com"]
[Date "2010.12.06"]
[Round "-"]
[White "hipposcottimus"]
[Black "Dal-pal"]
[Result "1-0"]
[CurrentPosition "1kB5/pQ6/1p1p4/2pP4/8/8/P1Pq2PP/1R5K b - -"]
[Timezone "UTC"]
[ECO "C50"]
[ECOUrl "https://www.chess.com/openings/Italian-Game-3...d6-4.d4-exd4-5.Nxd4"]
[UTCDate "2010.12.06"]
[UTCTime "21:19:12"]
[WhiteElo "1572"]
[BlackElo "1332"]
[TimeControl "60"]
[Termination "hipposcottimus won by checkmate"]
[StartTime "21:19:12"]
[EndDate "2010.12.06"]
[EndTime "21:20:57"]
[Link "https://www.chess.com/game/live/74715169"]

1. e4 {[%clk 0:01:00]} 1... e5 {[%clk 0:01:00]} 2. Nf3 {[%clk 0:00:59.7]} 2... Nc6 {[%clk 0:00:59.4]} 3. Bc4 {[%clk 0:00:59.3]} 3... d6 {[%clk 0:00:59]} 4. d4 {[%clk 0:00:58.4]} 4... exd4 {[%clk 0:00:57.7]} 5. Nxd4 {[%clk 0:00:58.2]} 5... Nxd4 {[%clk 0:00:57.4]} 6. Qxd4 {[%clk 0:00:57.6]} 6... Be6 {[%clk 0:00:57.1]} 7. Bd3 {[%clk 0:00:57.2]} 7... Be7 {[%clk 0:00:54.9]} 8. Nc3 {[%clk 0:00:56.9]} 8... Nf6 {[%clk 0:00:54.5]} 9. O-O {[%clk 0:00:56.5]} 9... O-O {[%clk 0:00:53.9]} 10. Bg5 {[%clk 0:00:55.6]} 10... c5 {[%clk 0:00:53.5]} 11. Qe3 {[%clk 0:00:54]} 11... Rc8 {[%clk 0:00:48.3]} 12. Bxf6 {[%clk 0:00:52.5]} 12... Bxf6 {[%clk 0:00:47.5]} 13. Nd5 {[%clk 0:00:51.8]} 13... Bxd5 {[%clk 0:00:45.8]} 14. exd5 {[%clk 0:00:51.6]} 14... Re8 {[%clk 0:00:45.3]} 15. Qf3 {[%clk 0:00:49.4]} 15... Bxb2 {[%clk 0:00:44.4]} 16. Rab1 {[%clk 0:00:47.9]} 16... Bc3 {[%clk 0:00:43.2]} 17. Qh3 {[%clk 0:00:47.6]} 17... Bd4 {[%clk 0:00:42.1]} 18. Qxh7+ {[%clk 0:00:46.7]} 18... Kf8 {[%clk 0:00:40.2]} 19. Qh8+ {[%clk 0:00:45.1]} 19... Ke7 {[%clk 0:00:39.3]} 20. Qxg7 {[%clk 0:00:44.6]} 20... Kd7 {[%clk 0:00:38.1]} 21. Bf5+ {[%clk 0:00:38.9]} 21... Re6 {[%clk 0:00:35.7]} 22. Qxf7+ {[%clk 0:00:38]} 22... Qe7 {[%clk 0:00:33]} 23. Bxe6+ {[%clk 0:00:36.5]} 23... Kd8 {[%clk 0:00:31.5]} 24. Qg8+ {[%clk 0:00:35.9]} 24... Kc7 {[%clk 0:00:30.5]} 25. Qg4 {[%clk 0:00:30.8]} 25... Rf8 {[%clk 0:00:28.1]} 26. Qh3 {[%clk 0:00:28.1]} 26... Bxf2+ {[%clk 0:00:26.5]} 27. Rxf2 {[%clk 0:00:26.4]} 27... Rxf2 {[%clk 0:00:25.3]} 28. Kxf2 {[%clk 0:00:24.7]} 28... Qf6+ {[%clk 0:00:24.5]} 29. Kg1 {[%clk 0:00:24.4]} 29... Qd4+ {[%clk 0:00:23.1]} 30. Kh1 {[%clk 0:00:21.9]} 30... Qd2 {[%clk 0:00:20.7]} 31. Bc8 {[%clk 0:00:20.1]} 31... b6 {[%clk 0:00:15.2]} 32. Qd7+ {[%clk 0:00:19.4]} 32... Kb8 {[%clk 0:00:14.2]} 33. Qb7# {[%clk 0:00:18]} 1-0

[Event "Live Chess"]
[Site "Chess.com"]
[Date "2010.12.06"]
[Round "-"]
[White "Dal-pal"]
[Black "hipposcottimus"]
[Result "1-0"]
[CurrentPosition "6Q1/5R2/8/2B3k1/1PP5/8/6PP/6K1 b - -"]
[Timezone "UTC"]
[ECO "C47"]
[ECOUrl "https://www.chess.com/openings/Four-Knights-Game-Italian-Variation"]
[UTCDate "2010.12.06"]
[UTCTime "21:17:12"]
[WhiteElo "1335"]
[BlackElo "1569"]
[TimeControl "60"]
[Termination "Dal-pal won by resignation"]
[StartTime "21:17:12"]
[EndDate "2010.12.06"]
[EndTime "21:19:05"]
[Link "https://www.chess.com/game/live/74714557"]

1. e4 {[%clk 0:01:00]} 1... e5 {[%clk 0:01:00]} 2. Nf3 {[%clk 0:00:59.6]} 2... Nc6 {[%clk 0:00:59.7]} 3. Bc4 {[%clk 0:00:58.9]} 3... Nf6 {[%clk 0:00:59.5]} 4. Nc3 {[%clk 0:00:57.3]} 4... d5 {[%clk 0:00:55.7]} 5. exd5 {[%clk 0:00:56.3]} 5... e4 {[%clk 0:00:55.4]} 6. Nxe4 {[%clk 0:00:54.9]} 6... Nxe4 {[%clk 0:00:53.6]} 7. dxc6 {[%clk 0:00:54.3]} 7... bxc6 {[%clk 0:00:50.4]} 8. O-O {[%clk 0:00:53]} 8... Be7 {[%clk 0:00:49.4]} 9. Re1 {[%clk 0:00:52.5]} 9... Bf5 {[%clk 0:00:47.6]} 10. d3 {[%clk 0:00:51]} 10... Nd6 {[%clk 0:00:45]} 11. Bg5 {[%clk 0:00:50.1]} 11... O-O {[%clk 0:00:43.8]} 12. Bxe7 {[%clk 0:00:49.2]} 12... Qd7 {[%clk 0:00:43.1]} 13. Bxf8 {[%clk 0:00:48.3]} 13... Nxc4 {[%clk 0:00:42.8]} 14. dxc4 {[%clk 0:00:46.4]} 14... Qxd1 {[%clk 0:00:42.4]} 15. Rexd1 {[%clk 0:00:45.4]} 15... Bxc2 {[%clk 0:00:41.4]} 16. Rd2 {[%clk 0:00:44.2]} 16... Bg6 {[%clk 0:00:38.5]} 17. Bc5 {[%clk 0:00:42.2]} 17... Re8 {[%clk 0:00:37.9]} 18. Re1 {[%clk 0:00:40.5]} 18... Be4 {[%clk 0:00:37.6]} 19. Rde2 {[%clk 0:00:36.4]} 19... f5 {[%clk 0:00:37.2]} 20. Nh4 {[%clk 0:00:34.6]} 20... g6 {[%clk 0:00:32.1]} 21. f3 {[%clk 0:00:32.9]} 21... g5 {[%clk 0:00:26.3]} 22. fxe4 {[%clk 0:00:31.9]} 22... gxh4 {[%clk 0:00:25.3]} 23. exf5 {[%clk 0:00:31.4]} 23... Kf7 {[%clk 0:00:24.8]} 24. Rxe8 {[%clk 0:00:29.9]} 24... a6 {[%clk 0:00:23.7]} 25. R8e7+ {[%clk 0:00:29.2]} 25... Kf6 {[%clk 0:00:22.4]} 26. Rxc7 {[%clk 0:00:28.6]} 26... Kg5 {[%clk 0:00:22.1]} 27. Rxh7 {[%clk 0:00:27.9]} 27... Kxf5 {[%clk 0:00:21.8]} 28. Rxh4 {[%clk 0:00:27.2]} 28... Kg5 {[%clk 0:00:21.6]} 29. Rh6 {[%clk 0:00:26.7]} 29... Kxh6 {[%clk 0:00:20.4]} 30. Re6+ {[%clk 0:00:26]} 30... Kg5 {[%clk 0:00:20.2]} 31. Rxc6 {[%clk 0:00:25.5]} 31... Kf5 {[%clk 0:00:19.2]} 32. Rxa6 {[%clk 0:00:25.2]} 32... Ke5 {[%clk 0:00:18.9]} 33. Rd6 {[%clk 0:00:24.7]} 33... Ke4 {[%clk 0:00:17.6]} 34. b4 {[%clk 0:00:23.9]} 34... Ke5 {[%clk 0:00:15.6]} 35. a4 {[%clk 0:00:22.6]} 35... Ke4 {[%clk 0:00:15.3]} 36. a5 {[%clk 0:00:22.2]} 36... Ke5 {[%clk 0:00:15]} 37. a6 {[%clk 0:00:21.9]} 37... Ke4 {[%clk 0:00:14.8]} 38. a7 {[%clk 0:00:21.6]} 38... Ke5 {[%clk 0:00:14.5]} 39. a8=Q {[%clk 0:00:20.8]} 39... Kf5 {[%clk 0:00:14.2]} 40. Qe8 {[%clk 0:00:20.4]} 40... Kg5 {[%clk 0:00:12.9]} 41. Rd7 {[%clk 0:00:19.4]} 41... Kf4 {[%clk 0:00:12.5]} 42. Rf7+ {[%clk 0:00:18.7]} 42... Kg5 {[%clk 0:00:11.1]} 43. Qg8+ {[%clk 0:00:17.6]} 1-0

[Event "Live Chess"]
[Site "Chess.com"]
[Date "2010.12.06"]
[Round "-"]
[White "hipposcottimus"]
[Black "Dal-pal"]
[Result "0-1"]
[CurrentPosition "r5k1/pp2qppp/3p4/8/8/8/PPP2PPP/4R1K1 b - -"]
[Timezone "UTC"]
[ECO "C50"]
[ECOUrl "https://www.chess.com/openings/Italian-Game-3...d6-4.d4-exd4-5.Nxd4"]
[UTCDate "2010.12.06"]
[UTCTime "21:16:20"]
[WhiteElo "1581"]
[BlackElo "1321"]
[TimeControl "60"]
[Termination "Dal-pal won by resignation"]
[StartTime "21:16:20"]
[EndDate "2010.12.06"]
[EndTime "21:17:01"]
[Link "https://www.chess.com/game/live/74714328"]

1. e4 {[%clk 0:01:00]} 1... e5 {[%clk 0:01:00]} 2. Nf3 {[%clk 0:00:59.7]} 2... Nc6 {[%clk 0:00:59.3]} 3. Bc4 {[%clk 0:00:59.4]} 3... d6 {[%clk 0:00:55.7]} 4. d4 {[%clk 0:00:55.7]} 4... exd4 {[%clk 0:00:54.5]} 5. Nxd4 {[%clk 0:00:55.3]} 5... Nxd4 {[%clk 0:00:54]} 6. Qxd4 {[%clk 0:00:54.1]} 6... Be6 {[%clk 0:00:53.7]} 7. Bd5 {[%clk 0:00:52.1]} 7... Bxd5 {[%clk 0:00:52.9]} 8. exd5 {[%clk 0:00:51.8]} 8... c6 {[%clk 0:00:52.5]} 9. O-O {[%clk 0:00:51.3]} 9... cxd5 {[%clk 0:00:51.7]} 10. Re1+ {[%clk 0:00:51]} 10... Be7 {[%clk 0:00:50.6]} 11. Qxd5 {[%clk 0:00:50.8]} 11... Nf6 {[%clk 0:00:50.1]} 12. Bg5 {[%clk 0:00:50.3]} 12... Nxd5 {[%clk 0:00:48.9]} 13. Bxe7 {[%clk 0:00:50]} 13... Nxe7 {[%clk 0:00:48.1]} 14. Nc3 {[%clk 0:00:49.6]} 14... O-O {[%clk 0:00:47.4]} 15. Nd5 {[%clk 0:00:49.2]} 15... Re8 {[%clk 0:00:45.9]} 16. Nxe7+ {[%clk 0:00:45]} 16... Rxe7 {[%clk 0:00:45]} 17. Rxe7 {[%clk 0:00:44.7]} 17... Qxe7 {[%clk 0:00:44.5]} 18. Re1 {[%clk 0:00:44.2]} 0-1

[Event "Live Chess"]
[Site "Chess.com"]
[Date "2010.12.06"]
[Round "-"]
[White "Dal-pal"]
[Black "hipposcottimus"]
[Result "0-1"]
[CurrentPosition "8/8/R3p3/p4k2/5Bn1/2r2KP1/P7/8 w - -"]
[Timezone "UTC"]
[ECO "C47"]
[ECOUrl "https://www.chess.com/openings/Four-Knights-Game-Scotch-Variation-4...Bb4"]
[UTCDate "2010.12.06"]
[UTCTime "21:14:04"]
[WhiteElo "1307"]
[BlackElo "1593"]
[TimeControl "60"]
[Termination "hipposcottimus won on time"]
[StartTime "21:14:04"]
[EndDate "2010.12.06"]
[EndTime "21:16:11"]
[Link "https://www.chess.com/game/live/74713711"]

1. e4 {[%clk 0:01:00]} 1... e5 {[%clk 0:01:00]} 2. Nf3 {[%clk 0:00:59.6]} 2... Nc6 {[%clk 0:00:59.7]} 3. Nc3 {[%clk 0:00:59.3]} 3... Nf6 {[%clk 0:00:59.4]} 4. d4 {[%clk 0:00:58.8]} 4... Bb4 {[%clk 0:00:59.2]} 5. dxe5 {[%clk 0:00:57.8]} 5... Bxc3+ {[%clk 0:00:58.6]} 6. bxc3 {[%clk 0:00:55.8]} 6... Nxe4 {[%clk 0:00:58.3]} 7. Bb5 {[%clk 0:00:53.1]} 7... Ne7 {[%clk 0:00:56.2]} 8. O-O {[%clk 0:00:52]} 8... c6 {[%clk 0:00:55.9]} 9. Bd3 {[%clk 0:00:50.6]} 9... d5 {[%clk 0:00:55.6]} 10. Bxe4 {[%clk 0:00:49.8]} 10... dxe4 {[%clk 0:00:53.5]} 11. Qxd8+ {[%clk 0:00:49.3]} 11... Kxd8 {[%clk 0:00:53.2]} 12. Rd1+ {[%clk 0:00:48.7]} 12... Kc7 {[%clk 0:00:52.9]} 13. Nd4 {[%clk 0:00:47.5]} 13... Be6 {[%clk 0:00:52.1]} 14. Nxe6+ {[%clk 0:00:45.2]} 14... fxe6 {[%clk 0:00:51.8]} 15. Bg5 {[%clk 0:00:44.5]} 15... Ng6 {[%clk 0:00:48.6]} 16. f4 {[%clk 0:00:39.1]} 16... Raf8 {[%clk 0:00:48.2]} 17. g3 {[%clk 0:00:37.7]} 17... h6 {[%clk 0:00:46.6]} 18. Bh4 {[%clk 0:00:35.6]} 18... Rh7 {[%clk 0:00:43.9]} 19. Rf1 {[%clk 0:00:32.1]} 19... Nh8 {[%clk 0:00:43.1]} 20. Be7 {[%clk 0:00:29.5]} 20... Rf7 {[%clk 0:00:41.6]} 21. Bd6+ {[%clk 0:00:28.3]} 21... Kd7 {[%clk 0:00:40.9]} 22. Rad1 {[%clk 0:00:27.2]} 22... Kc8 {[%clk 0:00:39.9]} 23. Rfe1 {[%clk 0:00:26.1]} 23... g5 {[%clk 0:00:38.9]} 24. fxg5 {[%clk 0:00:24.3]} 24... hxg5 {[%clk 0:00:38.4]} 25. Rxe4 {[%clk 0:00:23]} 25... Ng6 {[%clk 0:00:37.6]} 26. Rg4 {[%clk 0:00:21.6]} 26... Rf5 {[%clk 0:00:34.3]} 27. Rf1 {[%clk 0:00:20.1]} 27... Nxe5 {[%clk 0:00:30.7]} 28. Rxf5 {[%clk 0:00:16.9]} 28... Nxg4 {[%clk 0:00:29.7]} 29. Rxg5 {[%clk 0:00:15.2]} 29... Nxh2 {[%clk 0:00:26.9]} 30. Kg2 {[%clk 0:00:13.7]} 30... Kd7 {[%clk 0:00:23.7]} 31. Be5 {[%clk 0:00:11.4]} 31... Ke7 {[%clk 0:00:18.5]} 32. Rg8 {[%clk 0:00:10.1]} 32... Kf7 {[%clk 0:00:17.9]} 33. Rb8 {[%clk 0:00:09.6]} 33... b6 {[%clk 0:00:16.5]} 34. Ra8 {[%clk 0:00:08.7]} 34... a5 {[%clk 0:00:15.7]} 35. Rc8 {[%clk 0:00:08]} 35... Kg6 {[%clk 0:00:15]} 36. Rxc6 {[%clk 0:00:06.9]} 36... Kf5 {[%clk 0:00:14.7]} 37. Bf4 {[%clk 0:00:04.7]} 37... Ng4 {[%clk 0:00:14.1]} 38. Rxb6 {[%clk 0:00:03]} 38... Rh2+ {[%clk 0:00:13.8]} 39. Kf3 {[%clk 0:00:01.9]} 39... Rxc2 {[%clk 0:00:13.3]} 40. Ra6 {[%clk 0:00:00.9]} 40... Rxc3+ {[%clk 0:00:12.9]} 0-1

[Event "Live Chess"]
[Site "Chess.com"]
[Date "2010.12.06"]
[Round "-"]
[White "hipposcottimus"]
[Black "Dal-pal"]
[Result "1-0"]
[CurrentPosition "r7/pp5p/8/3Npb2/4k3/1BQ5/PP1P2PP/n1B1R1K1 b - -"]
[Timezone "UTC"]
[ECO "C57"]
[ECOUrl "https://www.chess.com/openings/Italian-Game-Fried-Liver-Attack-6...Kxf7-7.Qf3-Ke6-8.Nc3"]
[UTCDate "2010.12.06"]
[UTCTime "21:12:14"]
[WhiteElo "1590"]
[BlackElo "1310"]
[TimeControl "60"]
[Termination "hipposcottimus won by checkmate"]
[StartTime "21:12:14"]
[EndDate "2010.12.06"]
[EndTime "21:13:51"]
[Link "https://www.chess.com/game/live/74713186"]

1. e4 {[%clk 0:01:00]} 1... e5 {[%clk 0:01:00]} 2. Nf3 {[%clk 0:00:59.7]} 2... Nc6 {[%clk 0:00:59]} 3. Bc4 {[%clk 0:00:59.4]} 3... Nf6 {[%clk 0:00:57.9]} 4. Ng5 {[%clk 0:00:59]} 4... d5 {[%clk 0:00:53.9]} 5. exd5 {[%clk 0:00:58.7]} 5... Nxd5 {[%clk 0:00:52.9]} 6. Nxf7 {[%clk 0:00:58.4]} 6... Kxf7 {[%clk 0:00:49.7]} 7. Qf3+ {[%clk 0:00:58.1]} 7... Ke6 {[%clk 0:00:48.6]} 8. Nc3 {[%clk 0:00:55.8]} 8... Bc5 {[%clk 0:00:44.3]} 9. Ne4 {[%clk 0:00:54.6]} 9... Rf8 {[%clk 0:00:40.4]} 10. Nxc5+ {[%clk 0:00:53.6]} 10... Kd6 {[%clk 0:00:38.9]} 11. Ne4+ {[%clk 0:00:52.3]} 11... Ke6 {[%clk 0:00:37.9]} 12. Qg4+ {[%clk 0:00:49.8]} 12... Rf5 {[%clk 0:00:36.2]} 13. Qxg7 {[%clk 0:00:46.7]} 13... Qf6 {[%clk 0:00:35.5]} 14. Qxc7 {[%clk 0:00:40.7]} 14... Nd4 {[%clk 0:00:19.1]} 15. Nxf6 {[%clk 0:00:39.5]} 15... Rxf2 {[%clk 0:00:16.5]} 16. Kxf2 {[%clk 0:00:38.2]} 16... Nxc2 {[%clk 0:00:15.8]} 17. Nxd5 {[%clk 0:00:33.3]} 17... Nxa1 {[%clk 0:00:14.2]} 18. Qe7+ {[%clk 0:00:32.8]} 18... Kf5 {[%clk 0:00:13.2]} 19. Rf1 {[%clk 0:00:32.5]} 19... Ke4 {[%clk 0:00:12.5]} 20. Kg1 {[%clk 0:00:32.2]} 20... Kd4 {[%clk 0:00:12]} 21. Bb3 {[%clk 0:00:31.5]} 21... Bf5 {[%clk 0:00:09.7]} 22. Qb4+ {[%clk 0:00:31.1]} 22... Kd3 {[%clk 0:00:06.7]} 23. Qc3+ {[%clk 0:00:30.8]} 23... Ke4 {[%clk 0:00:06]} 24. Re1# {[%clk 0:00:29.7]} 1-0

[Event "Live Chess"]
[Site "Chess.com"]
[Date "2010.12.06"]
[Round "-"]
[White "Dal-pal"]
[Black "hipposcottimus"]
[Result "1-0"]
[CurrentPosition "4Q2k/p5pp/8/2p1p3/4P3/2P1B1P1/P1P4P/6K1 b - -"]
[Timezone "UTC"]
[ECO "C47"]
[ECOUrl "https://www.chess.com/openings/Four-Knights-Game-Scotch-Variation-4...Bb4"]
[UTCDate "2010.12.06"]
[UTCTime "21:10:41"]
[WhiteElo "1313"]
[BlackElo "1587"]
[TimeControl "60"]
[Termination "Dal-pal won by checkmate"]
[StartTime "21:10:41"]
[EndDate "2010.12.06"]
[EndTime "21:12:06"]
[Link "https://www.chess.com/game/live/74712747"]

1. e4 {[%clk 0:01:00]} 1... e5 {[%clk 0:01:00]} 2. Nf3 {[%clk 0:00:59]} 2... Nc6 {[%clk 0:00:59.7]} 3. Nc3 {[%clk 0:00:58.6]} 3... Nf6 {[%clk 0:00:59.4]} 4. d4 {[%clk 0:00:58.2]} 4... Bb4 {[%clk 0:00:58.9]} 5. dxe5 {[%clk 0:00:57.4]} 5... Bxc3+ {[%clk 0:00:56.2]} 6. bxc3 {[%clk 0:00:55.7]} 6... Nxe4 {[%clk 0:00:55.9]} 7. Bb5 {[%clk 0:00:53.2]} 7... O-O {[%clk 0:00:55]} 8. Bg5 {[%clk 0:00:51.2]} 8... f6 {[%clk 0:00:50.7]} 9. Be3 {[%clk 0:00:49.3]} 9... Nxe5 {[%clk 0:00:46.9]} 10. Nxe5 {[%clk 0:00:48]} 10... fxe5 {[%clk 0:00:46.4]} 11. O-O {[%clk 0:00:46.5]} 11... c6 {[%clk 0:00:44.4]} 12. Bc4+ {[%clk 0:00:44.9]} 12... Kh8 {[%clk 0:00:42.5]} 13. f3 {[%clk 0:00:42.4]} 13... d5 {[%clk 0:00:42.2]} 14. fxe4 {[%clk 0:00:41.2]} 14... Rxf1+ {[%clk 0:00:41.3]} 15. Qxf1 {[%clk 0:00:39.5]} 15... dxc4 {[%clk 0:00:41]} 16. Qxc4 {[%clk 0:00:38.9]} 16... b5 {[%clk 0:00:40.7]} 17. Qf7 {[%clk 0:00:36.9]} 17... Bd7 {[%clk 0:00:37.6]} 18. Rf1 {[%clk 0:00:34.9]} 18... c5 {[%clk 0:00:30.7]} 19. g3 {[%clk 0:00:32]} 19... Qg8 {[%clk 0:00:29.8]} 20. Qxd7 {[%clk 0:00:30.3]} 20... Re8 {[%clk 0:00:27.6]} 21. Qxb5 {[%clk 0:00:28.6]} 21... Rf8 {[%clk 0:00:27.2]} 22. Rxf8 {[%clk 0:00:26.2]} 22... Qxf8 {[%clk 0:00:26.8]} 23. Qc6 {[%clk 0:00:23.9]} 23... Qe8 {[%clk 0:00:26.1]} 24. Qxe8# {[%clk 0:00:21.2]} 1-0

[Event "Live Chess"]
[Site "Chess.com"]
[Date "2010.12.06"]
[Round "-"]
[White "hipposcottimus"]
[Black "Sam_Burrows"]
[Result "1-0"]
[CurrentPosition "8/8/8/8/R1kr4/3n3P/6PK/8 b - -"]
[Timezone "UTC"]
[ECO "C41"]
[ECOUrl "https://www.chess.com/openings/Philidor-Defense-3.d4-Bg4"]
[UTCDate "2010.12.06"]
[UTCTime "21:08:17"]
[WhiteElo "1600"]
[BlackElo "1449"]
[TimeControl "60"]
[Termination "hipposcottimus won on time"]
[StartTime "21:08:17"]
[EndDate "2010.12.06"]
[EndTime "21:10:26"]
[Link "https://www.chess.com/game/live/74712061"]

1. e4 {[%clk 0:01:00]} 1... e5 {[%clk 0:01:00]} 2. Nf3 {[%clk 0:00:58.8]} 2... d6 {[%clk 0:00:59.6]} 3. d4 {[%clk 0:00:57.1]} 3... Bg4 {[%clk 0:00:59.2]} 4. d5 {[%clk 0:00:55.8]} 4... Bxf3 {[%clk 0:00:58.5]} 5. Qxf3 {[%clk 0:00:55.2]} 5... Nf6 {[%clk 0:00:56.4]} 6. c4 {[%clk 0:00:54.6]} 6... c6 {[%clk 0:00:55.9]} 7. Bd3 {[%clk 0:00:53.5]} 7... b5 {[%clk 0:00:54.6]} 8. O-O {[%clk 0:00:51.4]} 8... bxc4 {[%clk 0:00:53.5]} 9. Bxc4 {[%clk 0:00:51.1]} 9... cxd5 {[%clk 0:00:52.7]} 10. exd5 {[%clk 0:00:50.6]} 10... Na6 {[%clk 0:00:50.5]} 11. Nc3 {[%clk 0:00:48.9]} 11... Be7 {[%clk 0:00:49.9]} 12. Bg5 {[%clk 0:00:48.1]} 12... O-O {[%clk 0:00:49.6]} 13. Ne4 {[%clk 0:00:47.1]} 13... Rc8 {[%clk 0:00:48.9]} 14. Bxf6 {[%clk 0:00:46.1]} 14... Bxf6 {[%clk 0:00:47]} 15. Nxf6+ {[%clk 0:00:45.8]} 15... Qxf6 {[%clk 0:00:46.2]} 16. Qxf6 {[%clk 0:00:45.5]} 16... gxf6 {[%clk 0:00:45.6]} 17. f4 {[%clk 0:00:45.1]} 17... Rxc4 {[%clk 0:00:44.5]} 18. fxe5 {[%clk 0:00:41.5]} 18... fxe5 {[%clk 0:00:43.8]} 19. b3 {[%clk 0:00:39.1]} 19... Rc2 {[%clk 0:00:42.4]} 20. Rf3 {[%clk 0:00:37.9]} 20... Rfc8 {[%clk 0:00:41.1]} 21. Rg3+ {[%clk 0:00:37.5]} 21... Kf8 {[%clk 0:00:39.8]} 22. Rf1 {[%clk 0:00:37.2]} 22... Rc1 {[%clk 0:00:37.4]} 23. Rf3 {[%clk 0:00:36.9]} 23... R8c2 {[%clk 0:00:35.2]} 24. Rxf7+ {[%clk 0:00:35.6]} 24... Ke8 {[%clk 0:00:33.4]} 25. Rf6 {[%clk 0:00:34.8]} 25... Rc3 {[%clk 0:00:31.2]} 26. Re6+ {[%clk 0:00:33.1]} 26... Kd7 {[%clk 0:00:28.5]} 27. Rh6 {[%clk 0:00:31.2]} 27... Kc7 {[%clk 0:00:27.2]} 28. Rxh7+ {[%clk 0:00:30.5]} 28... Kb6 {[%clk 0:00:26.8]} 29. Rh6 {[%clk 0:00:29.9]} 29... Kc5 {[%clk 0:00:24.9]} 30. Re6 {[%clk 0:00:29]} 30... Kxd5 {[%clk 0:00:24.1]} 31. Rf6 {[%clk 0:00:28.2]} 31... Rxf1+ {[%clk 0:00:22.9]} 32. Rxf1 {[%clk 0:00:27.2]} 32... Rc2 {[%clk 0:00:22.3]} 33. Rd1+ {[%clk 0:00:26.9]} 33... Kc5 {[%clk 0:00:20.2]} 34. a3 {[%clk 0:00:26.5]} 34... Rb2 {[%clk 0:00:17.6]} 35. b4+ {[%clk 0:00:25.7]} 35... Kb5 {[%clk 0:00:16.6]} 36. Rxd6 {[%clk 0:00:24.3]} 36... Ra2 {[%clk 0:00:12.4]} 37. Rd5+ {[%clk 0:00:23.9]} 37... Kb6 {[%clk 0:00:10.9]} 38. Rxe5 {[%clk 0:00:19.7]} 38... Rxa3 {[%clk 0:00:10.4]} 39. Re6+ {[%clk 0:00:19]} 39... Kb5 {[%clk 0:00:08.7]} 40. h3 {[%clk 0:00:18.8]} 40... Nxb4 {[%clk 0:00:07.1]} 41. Kh2 {[%clk 0:00:18.5]} 41... Rd3 {[%clk 0:00:05.1]} 42. Re5+ {[%clk 0:00:17.5]} 42... Kc4 {[%clk 0:00:03.7]} 43. Re4+ {[%clk 0:00:16.5]} 43... Rd4 {[%clk 0:00:03]} 44. Re5 {[%clk 0:00:15.4]} 44... a5 {[%clk 0:00:01.2]} 45. Rxa5 {[%clk 0:00:14.8]} 45... Nd3 {[%clk 0:00:00.3]} 46. Ra4+ {[%clk 0:00:14.2]} 1-0

[Event "Live Chess"]
[Site "Chess.com"]
[Date "2010.12.06"]
[Round "-"]
[White "hipposcottimus"]
[Black "SUPREM3"]
[Result "0-1"]
[CurrentPosition "5rk1/ppp3bp/4b1p1/8/2P3P1/1P5P/P7/4n1K1 w - -"]
[Timezone "UTC"]
[ECO "B06"]
[ECOUrl "https://www.chess.com/openings/Modern-Defense-with-1-e4-2.d4-Bg7"]
[UTCDate "2010.12.06"]
[UTCTime "21:06:31"]
[WhiteElo "1595"]
[BlackElo "1608"]
[TimeControl "60"]
[Termination "SUPREM3 won by resignation"]
[StartTime "21:06:31"]
[EndDate "2010.12.06"]
[EndTime "21:07:56"]
[Link "https://www.chess.com/game/live/74711534"]

1. e4 {[%clk 0:01:00]} 1... g6 {[%clk 0:01:00]} 2. d4 {[%clk 0:00:58.4]} 2... Bg7 {[%clk 0:00:59.7]} 3. e5 {[%clk 0:00:58.1]} 3... e6 {[%clk 0:00:59.4]} 4. c4 {[%clk 0:00:57.6]} 4... Ne7 {[%clk 0:00:59.2]} 5. Nc3 {[%clk 0:00:56.9]} 5... d6 {[%clk 0:00:58.9]} 6. f4 {[%clk 0:00:56.2]} 6... dxe5 {[%clk 0:00:58.2]} 7. fxe5 {[%clk 0:00:55.9]} 7... Nbc6 {[%clk 0:00:57.2]} 8. Nf3 {[%clk 0:00:55.6]} 8... f6 {[%clk 0:00:56.7]} 9. Be2 {[%clk 0:00:54]} 9... fxe5 {[%clk 0:00:55.8]} 10. dxe5 {[%clk 0:00:53.7]} 10... O-O {[%clk 0:00:54]} 11. O-O {[%clk 0:00:53.4]} 11... Nf5 {[%clk 0:00:53.4]} 12. Bf4 {[%clk 0:00:51.4]} 12... Nfd4 {[%clk 0:00:49.8]} 13. Qe1 {[%clk 0:00:46.8]} 13... Rxf4 {[%clk 0:00:43.9]} 14. Nxd4 {[%clk 0:00:43.8]} 14... Rxf1+ {[%clk 0:00:42.2]} 15. Qxf1 {[%clk 0:00:43.4]} 15... Nxd4 {[%clk 0:00:41.5]} 16. Bg4 {[%clk 0:00:41.5]} 16... Nc2 {[%clk 0:00:40]} 17. Rc1 {[%clk 0:00:40.1]} 17... Qd4+ {[%clk 0:00:38.9]} 18. Kh1 {[%clk 0:00:38.5]} 18... Ne3 {[%clk 0:00:36.7]} 19. Ne2 {[%clk 0:00:33]} 19... Nxf1 {[%clk 0:00:34.3]} 20. Nxd4 {[%clk 0:00:32.3]} 20... Ne3 {[%clk 0:00:30.7]} 21. Re1 {[%clk 0:00:32]} 21... Nxg4 {[%clk 0:00:29.1]} 22. h3 {[%clk 0:00:29.7]} 22... Nxe5 {[%clk 0:00:28.2]} 23. g4 {[%clk 0:00:26.7]} 23... Nd3 {[%clk 0:00:27.4]} 24. b3 {[%clk 0:00:26.2]} 24... Nxe1 {[%clk 0:00:26.2]} 25. Nxe6 {[%clk 0:00:25.8]} 25... Bxe6 {[%clk 0:00:23.3]} 26. Kg1 {[%clk 0:00:25.5]} 26... Rf8 {[%clk 0:00:22.7]} 0-1